fUST/lending_fUST_20250622
["ID","MTS","AMOUNT","RATE_DAILY","PERIOD"]
[366928261,1750584638541,-460.0,0.00022955,3]
[366928262,1750584638552,-601.2,0.00022955,3]
[366928263,1750584638562,-601.2,0.00022955,3]
[366928264,1750584638571,-500.0,0.00022957,2]
[366928265,1750584638581,-500.0,0.00022957,2]
[366928266,1750584638591,-500.0,0.00022957,2]
[366928267,1750584638606,-500.0,0.00022957,2]
[366928268,1750584638616,-580.4380642,0.00022957,2]
[366928269,1750584638626,-500.0,0.00022957,2]
[366928270,1750584638636,-507.59854361,0.00022957,2]
[366928271,1750584638646,-467.54415067,0.00022958,3]
[366928272,1750584638656,-294.57042974,0.00022958,3]
[366928273,1750584638665,-462.20645035,0.00022958,3]
[366928274,1750584638675,-475.31252925,0.00022958,3]
[366928275,1750584638685,-595.43281785,0.00022958,3]
[366928276,1750584638694,-460.0,0.00022958,3]
[366928277,1750584638704,-460.0,0.00022958,3]
[366928278,1750584638713,-404.30911327,0.00022958,3]
[366928279,1750584638723,-463.8186129,0.00022958,3]
[366928280,1750584638733,-460.0,0.00022958,3]
[366928281,1750584638742,-460.0,0.00022958,3]
[366928282,1750584638752,-435.34069564,0.00022958,3]
[366928283,1750584638762,-464.85851556,0.00022958,3]
[366928284,1750584638772,-422.40092682,0.00022958,3]
[366928285,1750584638781,-433.33594492,0.00022958,3]
[366928286,1750584638791,-460.0,0.00022958,3]
[366928287,1750584638802,-460.0,0.00022958,3]
[366928288,1750584638812,-462.05117041,0.00022958,3]
[366928289,1750584638823,-460.0,0.00022958,3]
[366928290,1750584638834,-460.0,0.00022958,3]
[366928291,1750584638843,-460.0,0.00022958,3]
[366928292,1750584638853,-460.0,0.00022958,3]
[366928293,1750584638862,-474.02325066,0.00022958,3]
[366928294,1750584638871,-466.01874779,0.00022958,3]
[366928295,1750584638882,-755.29,0.00022958,3]
[366928296,1750584638893,-755.29,0.00022958,3]
[366928297,1750584638902,-460.0,0.00022958,3]
[366928298,1750584638912,-460.0,0.00022958,3]
[366928299,1750584638921,-469.88310155,0.00022958,3]
[366928300,1750584638931,-443.70133724,0.00022958,3]
[366928301,1750584638940,-431.87286803,0.00022958,3]
[366928302,1750584638950,-463.37442533,0.00022958,3]
[366928303,1750584638960,-446.281883,0.00022958,3]
[366928304,1750584638970,-451.42668973,0.00022958,3]
[366928305,1750584638980,-464.35270187,0.00022958,3]
[366928306,1750584638990,-603.11,0.00022958,3]
[366928307,1750584639000,-603.11,0.00022958,3]
[366928308,1750584639011,-1000.0,0.00022961,2]
[366928309,1750584639021,-1000.0,0.00022961,2]
[366928310,1750584639030,-180.257494,0.00022961,3]
[366928311,1750584639040,-476.00549674,0.00022961,3]
[366928312,1750584639050,-471.5506256,0.00022961,3]
[366928313,1750584639061,-464.46348762,0.00022961,3]
[366928314,1750584639071,-460.0,0.00022961,3]
[366928315,1750584639081,-442.65846108,0.00022961,3]
[366928316,1750584639090,-162.06174427,0.00022966,3]
[366928317,1750584639100,-467.35044673,0.00022966,3]
[366928318,1750584639110,-460.0,0.00022966,3]
[366928319,1750584639120,-465.32523376,0.00022966,3]
[366928320,1750584639131,-465.19895183,0.00022966,3]
[366928321,1750584639142,-468.38474708,0.00022966,3]
[366928322,1750584639152,-467.26573686,0.00022966,3]
[366928323,1750584639161,-468.39337148,0.00022966,3]
[366928324,1750584639171,-472.13040505,0.00022966,3]
[366928325,1750584639181,-216.01084162,0.00022973,2]
[366928326,1750584639191,-160.33928117,0.00022973,2]
[366928327,1750584639201,-335.04682004,0.00023003,8]
[366928328,1750584639211,-500.0,0.00023075,2]
[366928329,1750584639221,-500.0,0.00023075,2]
[366928330,1750584639234,-500.0,0.00023075,2]
[366928331,1750584639244,-500.87736512,0.00023075,2]
[366928332,1750584639253,-500.0,0.00023075,2]
[366928333,1750584639263,-156.75233049,0.00023075,2]
[366928334,1750584639272,-230.14598372,0.00023133,2]
[366928335,1750584639282,-335.04682004,0.00023141,8]
[366928336,1750584639292,-846.39664074,0.00023148,2]
[366928337,1750584639302,-502.59353345,0.00023213,3]
[366928338,1750584639314,-460.0,0.00023213,3]
[366928339,1750584639324,-460.0,0.00023213,3]
[366928340,1750584639333,-537.978401,0.00023214,2]
[366928341,1750584639343,-506.63167731,0.00023214,2]
[366928342,1750584639354,-461.36270385,0.00023249,3]
[366928343,1750584639364,-460.0,0.00023249,3]
[366928344,1750584639374,-460.0,0.00023249,3]
[366928345,1750584639390,-460.0,0.00023249,3]
[366928346,1750584639400,-258.51024846,0.00023249,3]
[366928347,1750584639410,-460.0,0.00023249,3]
[366928348,1750584639420,-285.78996853,0.00023249,3]
[366928349,1750584639430,-1156.5,0.00023249,3]
[366928350,1750584639440,-460.0,0.00023249,3]
[366928351,1750584639451,-153.99231509,0.00023276,2]
[366928352,1750584639461,-335.04682004,0.00023279,8]
[366928353,1750584639471,-150.0,0.00023288,2]
[366928354,1750584639481,-168.0,0.00023303,2]
[366928355,1750584639492,-335.04682004,0.00023417,9]
[366928356,1750584639502,-335.04682004,0.00023555,9]
[366928357,1750584639512,-153.99231509,0.00023697,2]
[366928358,1750584639522,-420.0,0.00023721,2]
[366928359,1750584639532,-460.0,0.00023781,3]
[366928360,1750584639541,-460.0,0.00023781,3]
[366928361,1750584639550,-460.0,0.00023781,3]
[366928362,1750584639560,-755.29,0.00023781,3]
[366928363,1750584639570,-603.11,0.00023781,3]
[366928364,1750584639580,-168.0,0.00023782,2]
[366928365,1750584639589,-350.0,0.00023836,2]
[366928366,1750584639599,-420.0,0.00023871,2]
[366928367,1750584639609,-209.24,0.0002393,10]
[366928368,1750584639618,-532687.59401504,0.0002394,7]
[366928369,1750584639631,-222.06,0.00023954,2]
[366928370,1750584639641,-500.0,0.00023973,2]
[366928371,1750584639650,-500.0,0.00023973,2]
[366928372,1750584639660,-500.0,0.00023973,2]
[366928373,1750584639670,-500.0,0.00023973,2]
[366928374,1750584639680,-500.0,0.00023973,2]
[366928375,1750584639689,-500.0,0.00023973,2]
[366928376,1750584639698,-513.59940963,0.00023973,2]
[366928377,1750584639707,-600.0,0.00023973,2]
[366928378,1750584639717,-1100.66,0.0002398,3]
[366928380,1750584639727,-550.33,0.0002398,3]
[366928381,1750584639736,-275.17,0.0002398,3]
[366928382,1750584639746,-441.0,0.00023982,2]
[366928383,1750584639755,-59039.8095496,0.0002399,2]
[366928384,1750584639765,-500.0,0.00024,2]
[366928385,1750584639774,-505.50578847,0.00024,2]
[366928386,1750584639783,-500.0,0.00024,2]
[366928387,1750584639793,-524.02598587,0.00024,3]
[366928388,1750584639804,-297.0,0.00024079,2]
[366928389,1750584639814,-465.91963055,0.00024109,3]
[366928390,1750584639824,-153.99231509,0.00024119,2]
[366928391,1750584639834,-215.0738,0.00024227,2]
[366928392,1750584639843,-168.0,0.00024259,2]
[366928393,1750584639854,-460.0,0.00024347,3]
[366928394,1750584639863,-295.56004447,0.00024347,3]
[366928395,1750584639873,-460.0,0.00024347,3]
[366928396,1750584639885,-460.0,0.00024347,3]
[366928397,1750584639894,-1156.5,0.00024347,3]
[366928398,1750584639904,-460.0,0.00024347,3]
[366928399,1750584639914,-991.000966,0.00024401,4]
[366928400,1750584639924,-500.0,0.00024499,3]
[366928401,1750584639933,-460.0,0.00024499,3]
[366928402,1750584639943,-460.0,0.00024499,3]
[366928403,1750584639953,-460.0,0.00024499,3]
[366928404,1750584639963,-460.0,0.00024499,3]
[366928405,1750584639973,-755.29,0.00024499,3]
[366928406,1750584639983,-771681.27874756,0.00024499,4]
[366928414,1750584640573,-0.04609692,0.00021966,2]
[366928415,1750584640611,-1769.30390308,0.00021966,2]
[366928416,1750584640621,-1769.35,0.0002197,2]
[366928417,1750584640631,-1769.35,0.00022798,2]
[366928418,1750584640640,-500.0,0.00022957,2]
[366928419,1750584640650,-26.85348169,0.00022957,2]
[366928420,1750584640661,-473.14651831,0.00022957,2]
[366928421,1750584640671,-500.0,0.00022957,2]
[366928422,1750584640680,-500.0,0.00022957,2]
[366928423,1750584640689,-500.0,0.00022957,2]
[366928424,1750584640698,-500.0,0.00022957,2]
[366928425,1750584640707,-1769.35,0.00022957,2]
[366928426,1750584640716,-500.0,0.00022957,2]
[366928427,1750584640725,-449.43613005,0.00023249,3]
[366928428,1750584640737,-151.76386995,0.00023249,3]
[366928429,1750584640747,-1769.35,0.00023939,2]
[366928430,1750584640757,-1769.35,0.00023939,2]
[366928431,1750584640768,-1769.35,0.00023939,2]
[366928432,1750584640777,-444.40251687,0.000242,2]
[366928433,1750584640788,-601.2,0.00024347,3]
[366928434,1750584640798,-444.40251687,0.00024449,2]
[366928435,1750584640807,-27023.39106318,0.00024499,4]
[366928436,1750584640820,-368.0747991,0.00024499,4]
[366928437,1750584641774,-500.0,0.00021552,2]
[366928444,1750584643582,-500.0,0.00021552,2]
[366928445,1750584643592,-500.0,0.00021552,2]
[366928446,1750584643602,-500.0,0.00021552,2]
[366928447,1750584643613,-500.0,0.00021552,2]
[366928448,1750584643622,-500.0,0.00021552,2]
[366928449,1750584643633,-500.0,0.00021552,2]
[366928450,1750584643642,-241.82898424,0.00021552,2]
[366928451,1750584643652,-439.97160924,0.00021552,2]
[366928452,1750584643661,-500.0,0.00021552,2]
[366928453,1750584643671,-500.0,0.00021552,2]
[366928454,1750584643680,-576.8981914,0.00021552,2]
[366928455,1750584643689,-500.0,0.00021552,2]
[366928456,1750584643698,-500.0,0.00021552,2]
[366928457,1750584643707,-333.89815821,0.00021552,2]
[366928458,1750584643717,-202.22762479,0.00021552,2]
[366928466,1750584646137,-20.23846064,0.00021552,2]
[366928467,1750584646237,-124.35765832,0.00021552,2]
[366928468,1750584646247,-403.35617508,0.00021552,2]
[366928469,1750584646256,-460.0,0.00021964,3]
[366928470,1750584646266,-460.0,0.00021964,3]
[366928471,1750584646275,-460.0,0.00021964,3]
[366928472,1750584646284,-440.1438782,0.00021964,3]
[366928473,1750584646293,-460.0,0.00021965,3]
[366928474,1750584646303,-473.35861997,0.00021966,3]
[366928475,1750584646315,-405.24742168,0.00022955,3]
[366928476,1750584646324,-460.0,0.00022955,3]
[366928477,1750584646335,-460.0,0.00022955,3]
[366928478,1750584646344,-135.74978588,0.00022955,3]
[366928479,1750584660470,-300.0,0.00021744,2]
[366928480,1750584664442,-176.08916956,0.00021744,2]
[366928481,1750584802410,-164.0,0.00020938,2]
[366928482,1750584809005,353.04952848,0.000222,69]
[366928483,1750584814067,353.04952847,0.00022714,71]
[366928484,1750584870403,-5000.0,0.00020728,2]
[366928485,1750584870426,-300.0,0.00020937,2]
[366928486,1750584870449,-24.610434,0.00020938,2]
[366928487,1750584870471,-1761.389566,0.00020938,2]
[366928488,1750584936479,-5000.0,0.00020107,2]
[366928489,1750584936503,-275.202804,0.0002031,2]
[366928490,1750584936524,-704.0818,0.00020886,2]
[366928491,1750584936546,-2132.715396,0.00020938,2]
[366928492,1750585043962,-5000.0,0.00019906,2]
[366928660,1750585107621,-5000.0,0.00020728,2]
[366928686,1750585170803,-4388.0,0.00020728,2]
[366928693,1750585269157,211.82971709,0.000222,69]
[366928694,1750585274211,211.82971708,0.00022675,71]
[366928695,1750585552114,-3639.7325513,0.00020024,2]
[366928696,1750585555120,-885.8325564,0.00020024,2]
[366928697,1750585625104,-184.37041282,0.00020024,2]
[366928698,1750585651227,-290.06447948,0.00020024,2]
[366928699,1750585651251,-23.85131556,0.00020024,2]
[366928700,1750585654087,-1389.01391256,0.00020024,2]
[366928701,1750585654108,-173.44343366,0.00020226,2]
[366928702,1750585654130,-300.0,0.00020843,2]
[366928703,1750585654152,-300.0,0.00020843,2]
[366928704,1750585654179,-938.97293413,0.00020843,10]
[366928705,1750585654210,-162.55706587,0.00020843,10]
[366928706,1750585654234,-300.03,0.00020844,3]
[366928707,1750585654260,-593.44,0.00020844,3]
[366928708,1750585654282,-823.51,0.00020844,3]
[366928709,1750585654303,-411.76,0.00020844,3]
[366928710,1750585654324,-205.88,0.00020844,3]
[366928711,1750585654346,-617.65,0.00020844,3]
[366928712,1750585654368,-1175.78705254,0.0002085,2]
[366928714,1750585675230,163.817501,0.00013699,2]
[366928715,1750585695109,555.81765651,0.000189,2]
[366928716,1750585707244,150.84,0.00023,30]
[366928717,1750585734053,158.87228781,0.000222,69]
[366928718,1750585739040,158.87228781,0.000222,69]
[366928719,1750585751097,-5000.0,0.00019824,2]
[366928720,1750585751120,-300.0,0.0001985,2]
[366928721,1750585751141,-5671.5987433,0.00019851,2]
[366928722,1750585751163,-367.99799697,0.00020751,2]
[366928723,1750585751188,-917.94,0.00020841,10]
[366928724,1750585751211,-764.95,0.00020841,10]
[366928725,1750585751236,-637.46,0.00020841,10]
[366928726,1750585751257,-500.0,0.0002085,2]
[366928727,1750585751277,-500.0,0.0002085,2]
[366928728,1750585751297,-500.0,0.0002085,2]
[366928729,1750585751319,-500.0,0.0002085,2]
[366928730,1750585751343,-500.0,0.0002085,2]
[366928731,1750585751364,-553.25580995,0.0002085,2]
[366928732,1750585751386,-614.17897255,0.0002085,2]
[366928733,1750585751409,-500.0,0.0002085,2]
[366928734,1750585751432,-369.03612305,0.0002085,2]
[366928735,1750585751454,-500.0,0.0002085,2]
[366928736,1750585751474,-590.36997484,0.0002085,2]
[366928737,1750585751495,-500.0,0.0002085,2]
[366928738,1750585751516,-500.0,0.0002085,2]
[366928739,1750585751537,-500.0,0.0002085,2]
[366928740,1750585751559,-500.0,0.0002085,2]
[366928741,1750585751581,-307.28346441,0.0002085,2]
[366928742,1750585751601,-410.06060049,0.0002085,2]
[366928743,1750585751622,-500.0,0.0002085,2]
[366928744,1750585751741,-500.0,0.0002085,2]
[366928745,1750585751764,-500.0,0.0002085,2]
[366928746,1750585751786,-500.0,0.0002085,2]
[366928747,1750585751807,-500.0,0.0002085,2]
[366928748,1750585751828,-500.0,0.0002085,2]
[366928749,1750585751849,-500.0,0.0002085,2]
[366928750,1750585751870,-500.0,0.0002085,2]
[366928751,1750585751893,-500.0,0.0002085,2]
[366928752,1750585751915,-500.0,0.0002085,2]
[366928753,1750585751935,-500.0,0.0002085,2]
[366928754,1750585751956,-500.0,0.0002085,2]
[366928755,1750585751978,-500.0,0.0002085,2]
[366928756,1750585751998,-500.0,0.0002085,2]
[366928757,1750585752020,-500.0,0.0002085,2]
[366928758,1750585752043,-500.0,0.0002085,2]
[366928759,1750585752064,-500.0,0.0002085,2]
[366928760,1750585752086,-500.0,0.0002085,2]
[366928761,1750585752107,-500.0,0.0002085,2]
[366928762,1750585752129,-514.57063892,0.0002085,2]
[366928763,1750585752150,-500.0,0.0002085,2]
[366928764,1750585752173,-500.0,0.0002085,2]
[366928765,1750585752201,-500.0,0.0002085,2]
[366928766,1750585752225,-500.0,0.0002085,2]
[366928767,1750585752248,-500.0,0.0002085,2]
[366928768,1750585752271,-500.0,0.0002085,2]
[366928769,1750585752292,-500.0,0.0002085,2]
[366928770,1750585752313,-500.0,0.0002085,2]
[366928771,1750585752334,-500.0,0.0002085,2]
[366928772,1750585752357,-500.0,0.0002085,2]
[366928773,1750585752379,-500.0,0.0002085,2]
[366928774,1750585752402,-500.0,0.0002085,2]
[366928775,1750585752424,-500.0,0.0002085,2]
[366928776,1750585752445,-500.0,0.0002085,2]
[366928777,1750585752467,-500.0,0.0002085,2]
[366928778,1750585752490,-500.0,0.0002085,2]
[366928779,1750585752511,-500.0,0.0002085,2]
[366928780,1750585752533,-500.0,0.0002085,2]
[366928781,1750585752554,-500.0,0.0002085,2]
[366928782,1750585752576,-500.0,0.0002085,2]
[366928783,1750585752600,-302.77967537,0.0002085,2]
[366928784,1750585752623,-500.0,0.0002085,2]
[366928785,1750585752644,-480.13695048,0.0002085,2]
[366928786,1750585752666,-500.0,0.0002085,2]
[366928787,1750585752687,-500.0,0.0002085,2]
[366928788,1750585752708,-500.0,0.0002085,2]
[366928789,1750585752729,-519.69407563,0.0002085,2]
[366928790,1750585752752,-500.0,0.0002085,2]
[366928791,1750585752774,-500.0,0.0002085,2]
[366928792,1750585752796,-500.0,0.0002085,2]
[366928793,1750585752817,-500.0,0.0002085,2]
[366928794,1750585752840,-500.0,0.0002085,2]
[366928795,1750585752861,-500.0,0.0002085,2]
[366928796,1750585752882,-500.0,0.0002085,2]
[366928797,1750585752906,-500.0,0.0002085,2]
[366928798,1750585752929,-578.96315337,0.0002085,2]
[366928799,1750585752952,-500.0,0.0002085,2]
[366928800,1750585752975,-500.0,0.0002085,2]
[366928801,1750585752996,-500.0,0.0002085,2]
[366928802,1750585753019,-500.0,0.0002085,2]
[366928803,1750585753041,-500.0,0.0002085,2]
[366928804,1750585753063,-500.0,0.0002085,2]
[366928805,1750585753085,-500.0,0.0002085,2]
[366928806,1750585753107,-500.0,0.0002085,2]
[366928807,1750585753129,-500.0,0.0002085,2]
[366928808,1750585753150,-500.0,0.0002085,2]
[366928809,1750585753173,-500.0,0.0002085,2]
[366928810,1750585753201,-157.98628814,0.0002085,2]
[366928811,1750585753224,-500.0,0.0002085,2]
[366928812,1750585753247,-500.0,0.0002085,2]
[366928813,1750585753272,-500.0,0.0002085,2]
[366928814,1750585753293,-500.0,0.0002085,2]
[366928815,1750585753314,-500.0,0.0002085,2]
[366928816,1750585753336,-500.0,0.0002085,2]
[366928817,1750585753358,-500.0,0.0002085,2]
[366928818,1750585753380,-500.0,0.0002085,2]
[366928819,1750585753401,-500.0,0.0002085,2]
[366928820,1750585753423,-500.0,0.0002085,2]
[366928821,1750585753444,-500.0,0.0002085,2]
[366928822,1750585753466,-500.0,0.0002085,2]
[366928823,1750585753487,-500.0,0.0002085,2]
[366928824,1750585753508,-500.0,0.0002085,2]
[366928825,1750585753529,-500.0,0.0002085,2]
[366928826,1750585753551,-500.0,0.0002085,2]
[366928827,1750585753573,-500.0,0.0002085,2]
[366928828,1750585753595,-500.0,0.0002085,2]
[366928829,1750585753618,-500.0,0.0002085,2]
[366928830,1750585753640,-500.0,0.0002085,2]
[366928831,1750585753661,-500.0,0.0002085,2]
[366928832,1750585753683,-400.0,0.0002085,2]
[366928833,1750585753788,-500.0,0.0002085,2]
[366928834,1750585753811,-500.0,0.0002085,2]
[366928835,1750585753832,-500.0,0.0002085,2]
[366928836,1750585753854,-500.0,0.0002085,2]
[366928837,1750585753874,-500.0,0.0002085,2]
[366928838,1750585753895,-500.0,0.0002085,2]
[366928839,1750585753915,-500.0,0.0002085,2]
[366928840,1750585753937,-500.0,0.0002085,2]
[366928841,1750585753957,-500.0,0.0002085,2]
[366928842,1750585753979,-500.0,0.0002085,2]
[366928843,1750585754001,-700.6480456,0.0002085,2]
[366928844,1750585754023,-700.6480456,0.0002085,2]
[366928845,1750585754044,-500.0,0.0002085,2]
[366928846,1750585754066,-500.0,0.0002085,2]
[366928847,1750585754090,-700.6480456,0.0002085,2]
[366928848,1750585754113,-700.6480456,0.0002085,2]
[366928849,1750585754136,-700.6480456,0.0002085,2]
[366928850,1750585754159,-700.6480456,0.0002085,2]
[366928851,1750585754180,-700.6480456,0.0002085,2]
[366928852,1750585754206,-700.6480456,0.0002085,2]
[366928853,1750585754226,-500.0,0.0002085,2]
[366928854,1750585754249,-700.6480456,0.0002085,2]
[366928855,1750585754270,-500.0,0.0002085,2]
[366928856,1750585754292,-700.6480456,0.0002085,2]
[366928857,1750585754314,-381.966683,0.0002085,2]
[366928858,1750585754335,-500.0,0.0002085,2]
[366928859,1750585754356,-358.51406722,0.0002085,2]
[366928860,1750585754379,-500.0,0.0002085,2]
[366928861,1750585754403,-700.6480456,0.0002085,2]
[366928862,1750585754428,-700.6480456,0.0002085,2]
[366928863,1750585754452,-700.6480456,0.0002085,2]
[366928864,1750585754475,-700.6480456,0.0002085,2]
[366928865,1750585754498,-700.6480456,0.0002085,2]
[366928866,1750585754521,-700.6480456,0.0002085,2]
[366928867,1750585754543,-700.6480456,0.0002085,2]
[366928868,1750585754567,-707.01757329,0.0002085,2]
[366928869,1750585754591,-707.01757329,0.0002085,2]
[366928870,1750585754615,-707.01757329,0.0002085,2]
[366928871,1750585754639,-707.01757329,0.0002085,2]
[366928872,1750585754663,-707.01757329,0.0002085,2]
[366928873,1750585754688,-707.01757329,0.0002085,2]
[366928874,1750585754711,-707.01757329,0.0002085,2]
[366928875,1750585754736,-707.01757329,0.0002085,2]
[366928876,1750585754759,-707.01757329,0.0002085,2]
[366928877,1750585754781,-707.01757329,0.0002085,2]
[366928878,1750585754803,-24.21294746,0.0002085,2]
[366928879,1750585754825,-1073.90893371,0.00020851,2]
[366928880,1750585754849,-31869.75899304,0.00020851,2]
[366928882,1750585757195,-1078.14677694,0.00020641,2]
[366928883,1750585757220,-3921.85322306,0.00020641,2]
[366928884,1750585757242,-18130.24100696,0.00020851,2]
[366928885,1750585757266,-300.0,0.00020851,2]
[366928886,1750585757287,-300.0,0.00020851,2]
[366928887,1750585757306,-300.0,0.00020851,2]
[366928888,1750585757325,-500.0,0.00020853,2]
[366928889,1750585757346,-4860.8137961,0.00020854,2]
[366928890,1750585758103,-15087.59854508,0.00020854,2]
[366928891,1750585759151,-4951.58765882,0.00020854,2]
[366928892,1750585759174,-500.0,0.00020873,2]
[366928893,1750585759200,-500.0,0.00020873,2]
[366928894,1750585759222,-452.765,0.00020918,2]
[366928895,1750585759245,-177.179,0.00020918,2]
[366928896,1750585759267,-188.4542161,0.00020938,2]
[366928897,1750585759288,-260.51832066,0.00021127,2]
[366928898,1750585759309,-367.99799695,0.00021284,2]
[366928899,1750585759330,-1000.0,0.00021421,2]
[366928900,1750585759356,-1000.0,0.00021421,2]
[366928901,1750585759386,-2303.03532232,0.000215,5]
[366928902,1750585759416,-2303.03532213,0.000215,5]
[366928903,1750585759445,-2303.03532213,0.000215,5]
[366928904,1750585759475,-2303.03532213,0.000215,5]
[366928905,1750585759502,-2303.03532213,0.0002159,5]
[366928906,1750585759525,-420.0,0.00021617,2]
[366928907,1750585759546,-264.0,0.00021748,2]
[366928908,1750585759574,-2303.03532213,0.00021762,5]
[366928909,1750585759595,-367.99799695,0.00021817,2]
[366928910,1750585759619,-296.413,0.00021851,2]
[366928911,1750585759640,-152.82905505,0.00021853,2]
[366928912,1750585759660,-500.0,0.00021862,7]
[366928913,1750585759683,-151.0,0.000219,4]
[366928914,1750585759703,-293.1800686,0.00021917,3]
[366928915,1750585759724,-432.48975922,0.00021917,3]
[366928916,1750585759745,-460.0,0.00021917,3]
[366928917,1750585759765,-1185.16,0.00021917,2]
[366928918,1750585759786,-1185.16,0.00021917,2]
[366928919,1750585759806,-460.0,0.00021917,3]
[366928920,1750585759826,-460.0,0.00021917,3]
[366928921,1750585759848,-463.8346851,0.00021917,3]
[366928922,1750585759868,-460.0,0.00021917,3]
[366928923,1750585759889,-466.50129608,0.00021917,3]
[366928924,1750585759910,-432.89685942,0.00021917,3]
[366928925,1750585759930,-460.0,0.00021917,3]
[366928926,1750585759951,-460.0,0.00021917,3]
[366928927,1750585759970,-460.0,0.00021917,3]
[366928928,1750585759990,-420.47501972,0.00021917,3]
[366928929,1750585760011,-460.0,0.00021917,3]
[366928930,1750585760032,-358.74832676,0.00021917,3]
[366928931,1750585760052,-460.0,0.00021917,3]
[366928932,1750585760072,-460.0,0.00021917,3]
[366928933,1750585760093,-460.0,0.00021917,3]
[366928934,1750585760112,-470.17234831,0.00021917,3]
[366928935,1750585760132,-460.0,0.00021917,3]
[366928936,1750585760151,-460.0,0.00021917,3]
[366928937,1750585760171,-465.6563752,0.00021917,3]
[366928938,1750585760193,-460.0,0.00021917,3]
[366928939,1750585760213,-460.0,0.00021917,3]
[366928940,1750585760233,-460.0,0.00021917,3]
[366928941,1750585760253,-460.0,0.00021917,3]
[366928942,1750585760274,-460.0,0.00021917,3]
[366928943,1750585760294,-465.96905146,0.00021917,3]
[366928944,1750585760315,-441.73192711,0.00021917,3]
[366928945,1750585760334,-460.0,0.00021917,3]
[366928946,1750585760357,-395.43726939,0.00021917,3]
[366928947,1750585760378,-460.0,0.00021917,3]
[366928948,1750585760399,-460.0,0.00021917,3]
[366928949,1750585760420,-460.0,0.00021917,3]
[366928950,1750585760439,-460.0,0.00021917,3]
[366928951,1750585760459,-460.0,0.00021917,3]
[366928952,1750585760480,-460.0,0.00021917,3]
[366928953,1750585760500,-460.0,0.00021917,3]
[366928954,1750585760600,-288.40469252,0.00021917,3]
[366928955,1750585760621,-403.21926757,0.00021917,3]
[366928956,1750585760642,-460.0,0.00021917,3]
[366928957,1750585760663,-460.0,0.00021917,3]
[366928958,1750585760684,-460.0,0.00021917,3]
[366928959,1750585760709,-460.0,0.00021917,3]
[366928960,1750585760730,-460.0,0.00021917,3]
[366928961,1750585760750,-465.57412801,0.00021917,3]
[366928962,1750585760773,-460.0,0.00021917,3]
[366928963,1750585760793,-460.0,0.00021917,3]
[366928964,1750585760814,-460.0,0.00021917,3]
[366928965,1750585760836,-460.0,0.00021917,3]
[366928966,1750585760856,-460.0,0.00021917,3]
[366928967,1750585760876,-434.78695059,0.00021917,3]
[366928968,1750585760896,-460.0,0.00021917,3]
[366928969,1750585760916,-460.0,0.00021917,3]
[366928970,1750585760940,-460.0,0.00021917,3]
[366928971,1750585760959,-460.0,0.00021917,3]
[366928972,1750585760979,-326.50755234,0.00021917,3]
[366928973,1750585761001,-404.54228712,0.00021917,3]
[366928974,1750585761022,-443.27269497,0.00021917,3]
[366928975,1750585761041,-407.03853138,0.00021917,3]
[366928976,1750585761061,-846.39664074,0.00021917,3]
[366928977,1750585761082,-460.0,0.00021917,3]
[366928978,1750585761105,-460.0,0.00021917,3]
[366928979,1750585761124,-467.67157818,0.00021917,3]
[366928980,1750585761144,-460.0,0.00021917,3]
[366928981,1750585761165,-466.72032615,0.00021917,3]